fUSD/lending_fUSD_20260617
["ID","MTS","AMOUNT","RATE_DAILY","PERIOD"]
[425286425,1781644250000,-331.291076,0.00028414,7]
[425286426,1781644250000,-303.92528413,0.00028414,7]
[425286420,1781644250000,-386.02334236,0.0002835,7]
[425286428,1781644250000,-389.88666677,0.00028414,7]
[425286429,1781644250000,-369.4995878,0.00028414,7]
[425286448,1781644250000,-4592.74,0.00028654,30]
[425286430,1781644250000,-221.8058306,0.00028414,7]
[425286431,1781644250000,-410.50409923,0.00028414,7]
[425286442,1781644250000,-152.63811795,0.0002863,2]
[425286443,1781644250000,-2473.96,0.00028651,30]
[425286432,1781644250000,-200.0,0.00028429,2]
[425286433,1781644250000,-2991.49051684,0.00028429,2]
[425286434,1781644250000,-230.98112405,0.00028435,2]
[425286427,1781644250000,-301.97395304,0.00028414,7]
[425286437,1781644250000,-5000.74745351,0.00028545,7]
[425286453,1781644250000,-606.08,0.00028722,7]
[425286435,1781644250000,-5000.0,0.00028493,7]
[425286456,1781644250000,-606.08,0.0002875,30]
[425286446,1781644250000,-2421.0,0.00028652,30]
[425286455,1781644250000,-604.72,0.00028746,30]
[425286445,1781644250000,-4635.8,0.00028652,30]
[425286444,1781644250000,-2474.78,0.00028652,30]
[425286439,1781644250000,-544.0,0.00028588,7]
[425286440,1781644250000,-2000.0,0.0002863,2]
[425286436,1781644250000,-168.54,0.00028493,2]
[425286441,1781644250000,-529.49,0.0002863,2]
[425286438,1781644250000,-714.0,0.00028545,5]
[425286485,1781644251000,-200.0,0.000289,2]
[425286494,1781644251000,-2473.96,0.00028981,2]
[425286490,1781644251000,-604.72,0.00028975,7]
[425286502,1781644251000,-154.0,0.00028997,30]
[425286501,1781644251000,-989.0,0.00028997,30]
[425286491,1781644251000,-200.0,0.00028977,2]
[425286497,1781644251000,-2456.66,0.00028982,2]
[425286488,1781644251000,-604.72,0.00028946,2]
[425286489,1781644251000,-606.08,0.00028949,2]
[425286483,1781644251000,-606.08,0.00028892,7]
[425286481,1781644251000,-500.0,0.00028878,17]
[425286480,1781644251000,-606.08,0.00028864,2]
[425286487,1781644251000,-606.08,0.0002892,30]
[425286482,1781644251000,-604.72,0.00028889,7]
[425286486,1781644251000,-604.72,0.00028918,30]
[425286493,1781644251000,-2474.78,0.00028981,2]
[425286484,1781644251000,-200.0,0.000289,2]
[425286496,1781644251000,-2421.0,0.00028981,2]
[425286505,1781644251000,-151.0,0.00028997,30]
[425286500,1781644251000,-651.0,0.00028997,30]
[425286492,1781644251000,-606.08,0.00028977,7]
[425286516,1781644251000,-11216.72896027,0.00029,2]
[425286508,1781644251000,-157.0,0.00028997,30]
[425286510,1781644251000,-157.0,0.00028997,30]
[425286504,1781644251000,-292.0,0.00028997,30]
[425286507,1781644251000,-652.0,0.00028997,30]
[425286515,1781644251000,-42526.05530497,0.00029,2]
[425286511,1781644251000,-300.0,0.00028999,10]
[425286513,1781644251000,-300.0,0.00028999,10]
[425286503,1781644251000,-158.0,0.00028997,30]
[425286512,1781644251000,-300.0,0.00028999,10]
[425286506,1781644251000,-189.0,0.00028997,30]
[425286514,1781644251000,-2585.2413572,0.00029,2]
[425286495,1781644251000,-4635.8,0.00028981,2]
[425286499,1781644251000,-198.0025343,0.00028996,30]
[425286509,1781644251000,-543.0,0.00028997,30]
[425286498,1781644251000,-4592.74,0.00028983,2]
[425286541,1781644253000,-200.0,0.00029,2]
[425286536,1781644253000,-200.0,0.00029,2]
[425286535,1781644253000,-200.0,0.00029,2]
[425286533,1781644253000,-200.0,0.00029,2]
[425286534,1781644253000,-200.0,0.00029,2]
[425286537,1781644253000,-200.0,0.00029,2]
[425286538,1781644253000,-200.0,0.00029,2]
[425286539,1781644253000,-200.0,0.00029,2]
[425286542,1781644253000,-200.0,0.00029,2]
[425286546,1781644253000,-200.0,0.00029,2]
[425286532,1781644253000,-200.0,0.00029,2]
[425286540,1781644253000,-200.0,0.00029,2]
[425286531,1781644253000,-200.0,0.00029,2]
[425286521,1781644253000,-151.0,0.00024,2]
[425286528,1781644253000,-200.0,0.00029,2]
[425286552,1781644253000,-500.0,0.00029,2]
[425286527,1781644253000,-200.0,0.00029,2]
[425286522,1781644253000,-151.09681,0.00027397,2]
[425286526,1781644253000,-200.0,0.00029,2]
[425286523,1781644253000,-151.09681,0.00027397,2]
[425286525,1781644253000,-200.0,0.00029,2]
[425286520,1781644253000,-205.0,0.00021,2]
[425286524,1781644253000,-29739.63364821,0.00029,2]
[425286519,1781644253000,-205.0,0.0002,2]
[425286518,1781644253000,-516.04144983,0.00029,2]
[425286517,1781644253000,-151.09681,0.00027397,2]
[425286529,1781644253000,-200.0,0.00029,2]
[425286551,1781644253000,-500.0,0.00029,2]
[425286530,1781644253000,-200.0,0.00029,2]
[425286548,1781644253000,-200.0,0.00029,2]
[425286543,1781644253000,-200.0,0.00029,2]
[425286571,1781644253000,-5977.83203315,0.00029,2]
[425286570,1781644253000,-4022.16796685,0.00029,2]
[425286572,1781644253000,-1516.32971758,0.00029,2]
[425286568,1781644253000,-1503.12954683,0.00029,2]
[425286569,1781644253000,-220.03448658,0.00029,2]
[425286574,1781644253000,-3412.87913307,0.00029,2]
[425286566,1781644253000,-8126.55888228,0.00029,2]
[425286573,1781644253000,-808.73086693,0.00029,2]
[425286567,1781644253000,-425.80933261,0.00029,2]
[425286565,1781644253000,-597.66059409,0.00029,2]
[425286564,1781644253000,-450.93119919,0.00029,2]
[425286561,1781644253000,-249.31505606,0.00029,2]
[425286560,1781644253000,-638.81175294,0.00029,2]
[425286559,1781644253000,-505.48,0.00029,2]
[425286562,1781644253000,-1002.18745354,0.00029,2]
[425286557,1781644253000,-500.0,0.00029,2]
[425286558,1781644253000,-500.0,0.00029,2]
[425286554,1781644253000,-500.0,0.00029,2]
[425286556,1781644253000,-500.0,0.00029,2]
[425286555,1781644253000,-500.0,0.00029,2]
[425286553,1781644253000,-500.0,0.00029,2]
[425286545,1781644253000,-200.0,0.00029,2]
[425286550,1781644253000,-350.75873744,0.00029,2]
[425286547,1781644253000,-200.0,0.00029,2]
[425286549,1781644253000,-222.38,0.00029,2]
[425286544,1781644253000,-200.0,0.00029,2]
[425286563,1781644253000,-824.84932344,0.00029,2]
[425286576,1781644254000,-205.0,0.00022,2]
[425286578,1781644254000,-151.09681,0.00027397,2]
[425286575,1781644254000,-163.96458117,0.00018505,2]
[425286580,1781644254000,-2586.98247393,0.00027397,10]
[425286577,1781644254000,-205.0,0.00023,2]
[425286579,1781644254000,-270.26860883,0.00027397,10]
[425286581,1781644277000,152.0,0.0001456,2]
[425286582,1781644337000,301761.3779,0.0003,120]
[425286583,1781644576000,152.0,0.00014562,2]
[425286588,1781644921000,151.0,0.00014232,2]
[425286589,1781644940000,152.0,0.00014611,2]
[425286590,1781645119000,250.0,0.00014,2]
[425286591,1781645139000,152.0,0.00014612,2]
[425286592,1781645412000,12161.8731,0.000147,2]
[425286593,1781645431000,152.0,0.00014601,2]
[425286626,1781645432000,-150.0,0.00014797,2]
[425286632,1781645432000,-40.01875486,0.00014798,2]
[425286630,1781645432000,-310.0,0.00014798,2]
[425286629,1781645432000,-318.0,0.00014798,2]
[425286627,1781645432000,-87.28079504,0.00014797,2]
[425286622,1781645432000,-312.0,0.00014797,2]
[425286636,1781645432000,-151.42476218,0.00014798,2]
[425286628,1781645432000,-221.71920496,0.00014797,2]
[425286635,1781645432000,-153.0,0.00014798,2]
[425286634,1781645432000,-270.98124514,0.00014798,2]
[425286648,1781645432000,-145.49118184,0.00014798,2]
[425286650,1781645432000,-169.50881816,0.00014798,2]
[425286653,1781645432000,-151.0,0.00014798,2]
[425286641,1781645432000,-315.0,0.00014798,2]
[425286645,1781645432000,-146.9826296,0.00014798,2]
[425286643,1781645432000,-151.0,0.00014798,2]
[425286647,1781645432000,-310.0,0.00014798,2]
[425286646,1781645432000,-168.0173704,0.00014798,2]
[425286655,1781645432000,-317.0,0.00014798,2]
[425286656,1781645432000,-317.0,0.00014798,2]
[425286623,1781645432000,-151.0,0.00014797,2]
[425286639,1781645432000,-169.57523782,0.00014798,2]
[425286625,1781645432000,-319.0,0.00014797,2]
[425286600,1781645432000,-313.0,0.00014797,2]
[425286621,1781645432000,-320.0,0.00014797,2]
[425286599,1781645432000,-150.0,0.00014796,2]
[425286660,1781645432000,-152.0,0.00014798,2]
[425286602,1781645432000,-312.0,0.00014797,2]
[425286603,1781645432000,-316.0,0.00014797,2]
[425286601,1781645432000,-151.0,0.00014797,2]
[425286604,1781645432000,-321.0,0.00014797,2]
[425286606,1781645432000,-315.0,0.00014797,2]
[425286614,1781645432000,-314.0,0.00014797,2]
[425286615,1781645432000,-151.0,0.00014797,2]
[425286605,1781645432000,-150.0,0.00014797,2]
[425286607,1781645432000,-313.0,0.00014797,2]
[425286608,1781645432000,-151.0,0.00014797,2]
[425286610,1781645432000,-315.0,0.00014797,2]
[425286613,1781645432000,-314.0,0.00014797,2]
[425286612,1781645432000,-150.0,0.00014797,2]
[425286611,1781645432000,-309.0,0.00014797,2]
[425286616,1781645432000,-310.0,0.00014797,2]
[425286618,1781645432000,-147.99322677,0.00014797,2]
[425286617,1781645432000,-168.00677323,0.00014797,2]
[425286619,1781645432000,-150.0,0.00014797,2]
[425286620,1781645432000,-313.0,0.00014797,2]
[425286624,1781645432000,-315.0,0.00014797,2]
[425286659,1781645432000,-309.0,0.00014798,2]
[425286609,1781645432000,-315.0,0.00014797,2]
[425286662,1781645432000,-314.0,0.00014798,2]
[425286684,1781645432000,-317.0,0.00014798,2]
[425286688,1781645432000,-309.0,0.00014798,2]
[425286697,1781645432000,-153.0,0.00014799,2]
[425286698,1781645432000,-151.0,0.00014799,2]
[425286689,1781645432000,-313.0,0.00014798,2]
[425286690,1781645432000,-150.0,0.00014799,2]
[425286692,1781645432000,-152.0,0.00014799,2]
[425286696,1781645432000,-153.0,0.00014799,2]
[425286707,1781645432000,-486.0,0.000148,2]
[425286693,1781645432000,-151.0,0.00014799,2]
[425286691,1781645432000,-151.0,0.00014799,2]
[425286695,1781645432000,-150.0,0.00014799,2]
[425286699,1781645432000,-317.0,0.00014799,2]
[425286700,1781645432000,-152.0,0.00014799,2]
[425286702,1781645432000,-152.0,0.000148,2]
[425286701,1781645432000,-316.0,0.000148,2]
[425286703,1781645432000,-313.0,0.000148,2]
[425286704,1781645432000,-320.0,0.000148,2]
[425286706,1781645432000,-151.0,0.000148,2]
[425286705,1781645432000,-320.0,0.000148,2]
[425286658,1781645432000,-316.0,0.00014798,2]
[425286683,1781645432000,-150.0,0.00014798,2]
[425286682,1781645432000,-310.0,0.00014798,2]
[425286694,1781645432000,-150.0,0.00014799,2]
[425286681,1781645432000,-310.0,0.00014798,2]
[425286661,1781645432000,-315.0,0.00014798,2]
[425286685,1781645432000,-311.0,0.00014798,2]
[425286657,1781645432000,-150.0,0.00014798,2]
[425286663,1781645432000,-317.0,0.00014798,2]
[425286665,1781645432000,-314.0,0.00014798,2]
[425286664,1781645432000,-151.0,0.00014798,2]
[425286666,1781645432000,-321.0,0.00014798,2]
[425286668,1781645432000,-321.0,0.00014798,2]
[425286670,1781645432000,-150.0,0.00014798,2]
[425286673,1781645432000,-151.0,0.00014798,2]
[425286667,1781645432000,-151.0,0.00014798,2]
[425286671,1781645432000,-313.0,0.00014798,2]
[425286669,1781645432000,-500.0,0.00014798,2]
[425286687,1781645432000,-313.0,0.00014798,2]
[425286675,1781645432000,-313.0,0.00014798,2]
[425286679,1781645432000,-151.0,0.00014798,2]
[425286677,1781645432000,-311.0,0.00014798,2]
[425286686,1781645432000,-152.0,0.00014798,2]
[425286680,1781645432000,-315.0,0.00014798,2]
[425286676,1781645432000,-151.0,0.00014798,2]
[425286672,1781645432000,-311.0,0.00014798,2]
[425286674,1781645432000,-319.0,0.00014798,2]
[425286678,1781645432000,-319.0,0.00014798,2]
[425286736,1781645433000,-400.0,0.000171,2]
[425286739,1781645433000,-435.1,0.00017349,2]
[425286741,1781645433000,-9461.13078759,0.000174,2]
[425286743,1781645433000,-9461.13078759,0.000176,2]
[425286740,1781645433000,-166.66,0.00017361,2]
[425286742,1781645433000,-400.0,0.000174,2]
[425286745,1781645433000,-166.66,0.00017698,2]
[425286735,1781645433000,-9461.13078759,0.000171,2]
[425286738,1781645433000,-400.0,0.000173,2]
[425286744,1781645433000,-400.0,0.000176,2]
[425286751,1781645433000,-4756.0283729,0.00018,2]
[425286746,1781645433000,-214.38,0.00017728,2]
[425286747,1781645433000,-9461.13078759,0.000178,2]
[425286748,1781645433000,-400.0,0.000178,2]
[425286754,1781645433000,-9461.13078759,0.000181,2]
[425286755,1781645433000,-852.71202651,0.000182,2]
[425286756,1781645433000,-4756.0283729,0.000182,2]
[425286752,1781645433000,-350.0,0.00018,2]
[425286750,1781645433000,-852.71202651,0.00018,2]
[425286749,1781645433000,-9461.13078759,0.00018,2]
[425286733,1781645433000,-191.730503,0.00017086,2]
[425286734,1781645433000,-281.956622,0.00017086,2]
[425286737,1781645433000,-9461.13078759,0.000173,2]
[425286709,1781645433000,-160.0,0.00014801,2]
[425286731,1781645433000,-302.0,0.00016835,2]
[425286708,1781645433000,-150.0,0.000148,2]
[425286753,1781645433000,-1500.0,0.00018062,2]
[425286711,1781645433000,-320.0,0.00014999,2]
[425286715,1781645433000,-166.66,0.00016012,2]
[425286712,1781645433000,-321.0,0.00014999,2]
[425286716,1781645433000,-1852.42,0.00016336,2]
[425286719,1781645433000,-310.4,0.00016378,2]
[425286717,1781645433000,-166.66,0.0001635,2]
[425286714,1781645433000,-300.0,0.00016,2]
[425286718,1781645433000,-200.0,0.00016376,2]
[425286710,1781645433000,-317.0,0.00014899,2]
[425286713,1781645433000,-151.0,0.00014999,2]
[425286720,1781645433000,-150.0,0.00016381,2]
[425286722,1781645433000,-314.0,0.00016438,2]
[425286721,1781645433000,-1000.0,0.00016434,2]
[425286729,1781645433000,-168.54,0.00016712,2]
[425286728,1781645433000,-166.66,0.00016687,2]
[425286724,1781645433000,-312.0,0.00016438,2]
[425286727,1781645433000,-150.0,0.00016509,2]
[425286730,1781645433000,-536.89046171,0.00016743,2]
[425286723,1781645433000,-150.0,0.00016438,2]
[425286726,1781645433000,-312.0,0.00016438,2]
[425286725,1781645433000,-153.0,0.00016438,2]
[425286732,1781645433000,-166.66,0.00017024,2]
[425286758,1781645433000,-9461.13078759,0.000183,2]
[425286772,1781645433000,-1613.0535,0.00019158,2]
[425286759,1781645433000,-852.71202651,0.000184,2]
[425286786,1781645433000,-496.0,0.0002,2]
[425286787,1781645433000,-283.0,0.0002,2]
[425286791,1781645433000,-380.0,0.0002,2]
[425286792,1781645433000,-400.0,0.0002,2]
[425286794,1781645433000,-11929.19078347,0.0002,2]
[425286757,1781645433000,-191.730503,0.00018222,2]
[425286795,1781645433000,-15769.46271392,0.0002,2]
[425286793,1781645433000,-68573.41650261,0.0002,2]
[425286800,1781645433000,-1734.62772924,0.00020254,2]
[425286799,1781645433000,-1685.44690976,0.000202,2]
[425286789,1781645433000,-900.0,0.0002,2]
[425286798,1781645433000,-164.0,0.0002,2]
[425286796,1781645433000,-228.0,0.0002,2]
[425286802,1781645433000,-200.0,0.00020415,2]
[425286801,1781645433000,-1685.44690976,0.000204,2]
[425286806,1781645433000,-1685.44690976,0.000208,2]
[425286803,1781645433000,-191.730503,0.00020496,2]
[425286805,1781645433000,-1685.44690976,0.000206,2]
[425286804,1781645433000,-163.96458117,0.00020505,2]
[425286808,1781645433000,-161.57413015,0.00021,2]
[425286807,1781645433000,-1798.80895522,0.00020802,2]
[425286809,1781645433000,-1324.29156307,0.00021,2]
[425286797,1781645433000,-210.0,0.0002,2]
[425286780,1781645433000,-1672.7364795,0.00019706,2]
[425286790,1781645433000,-189.0,0.0002,2]
[425286785,1781645433000,-232.0,0.0002,2]
[425286761,1781645433000,-693.87811743,0.000184,2]
[425286763,1781645433000,-852.71202651,0.000185,2]
[425286762,1781645433000,-9461.13078759,0.000185,2]
[425286782,1781645433000,-1685.44690976,0.0002,2]
[425286760,1781645433000,-4756.0283729,0.000184,2]
[425286764,1781645433000,-4756.0283729,0.000185,2]
[425286767,1781645433000,-852.71202651,0.000187,2]
[425286765,1781645433000,-1555.5,0.0001861,2]
[425286768,1781645433000,-4756.0283729,0.000187,2]
[425286770,1781645433000,-214.38,0.00019098,2]
[425286775,1781645433000,-150.99,0.00019339,2]
[425286766,1781645433000,-9461.13078759,0.000187,2]
[425286771,1781645433000,-4756.0283729,0.000191,2]
[425286773,1781645433000,-4756.0283729,0.000193,2]
[425286779,1781645433000,-4756.0283729,0.000197,2]
[425286777,1781645433000,-281.956622,0.00019359,2]
[425286774,1781645433000,-39894.55,0.00019339,2]
[425286778,1781645433000,-4756.0283729,0.000195,2]
[425286776,1781645433000,-191.730503,0.00019359,2]
[425286781,1781645433000,-155.826362,0.0002,2]
[425286784,1781645433000,-244.0,0.0002,2]
[425286783,1781645433000,-1660.0,0.0002,2]
[425286788,1781645433000,-321.0,0.0002,2]
[425286769,1781645433000,-4756.0283729,0.000189,2]
[425286810,1781645434000,152.0,0.00030034,120]
[425286821,1781645439000,-361.15534669,0.00021,2]
[425286822,1781645439000,-484.65222461,0.00021,2]
[425286823,1781645439000,-319.25656961,0.00021,2]
[425286826,1781645439000,-1.01665753,0.00021,2]
[425286825,1781645439000,-242.98334247,0.00021,2]
[425286827,1781645439000,-232.0,0.00021,2]
[425286828,1781645439000,-68.98334259,0.00021,2]
[425286824,1781645439000,-856.09120578,0.00021,2]
[425286832,1781645440000,-321.0,0.00021,2]
[425286830,1781645440000,-427.01665741,0.00021,2]
[425286833,1781645440000,-900.0,0.00021,2]
[425286836,1781645440000,-228.0,0.00021,2]
[425286838,1781645440000,-164.0,0.00021,2]
[425286834,1781645440000,-189.0,0.00021,2]
[425286839,1781645440000,-500.0,0.00021074,2]
[425286842,1781645440000,-1685.44690976,0.000212,2]
[425286837,1781645440000,-210.0,0.00021,2]
[425286831,1781645440000,-283.0,0.00021,2]
[425286840,1781645440000,-500.0,0.00021074,2]
[425286844,1781645440000,-1865.36488656,0.0002135,2]
[425286841,1781645440000,-161.57413015,0.000212,2]
[425286843,1781645440000,-155.826362,0.00021333,2]
[425286835,1781645440000,-380.0,0.00021,2]
[425286846,1781645441000,-1685.44690976,0.000214,2]
[425286845,1781645441000,-161.57413015,0.000214,2]
[425286847,1781645441000,-161.57413015,0.000216,2]
[425286848,1781645441000,-13173.94271478,0.00021633,2]
[425286849,1781645441000,-10197.4489342,0.00021633,2]
[425286877,1781645445000,-151.0,0.00021898,2]
[425286881,1781645445000,-151.0,0.00021898,2]
[425286880,1781645445000,-151.0,0.00021898,2]
[425286879,1781645445000,-151.0,0.00021898,2]
[425286882,1781645445000,-500.0,0.00021898,2]
[425286886,1781645445000,-151.0,0.00021898,2]
[425286891,1781645445000,-500.0,0.00021898,2]
[425286887,1781645445000,-151.0,0.00021898,2]
[425286883,1781645445000,-151.0,0.00021898,2]
[425286885,1781645445000,-500.0,0.00021898,2]
[425286889,1781645445000,-151.0,0.00021898,2]
[425286888,1781645445000,-500.0,0.00021898,2]
[425286890,1781645445000,-151.0,0.00021898,2]
[425286884,1781645445000,-151.0,0.00021898,2]
[425286878,1781645445000,-151.0,0.00021898,2]
[425286870,1781645445000,-151.0,0.00021898,2]
[425286874,1781645445000,-151.0,0.00021898,2]
[425286860,1781645445000,-7423.81,0.0002,2]
[425286861,1781645445000,-406.0,0.00021,2]
[425286863,1781645445000,-281.956624,0.00021633,2]
[425286862,1781645445000,-191.730505,0.00021633,2]
[425286865,1781645445000,-1685.44690976,0.000217,2]
[425286864,1781645445000,-7241.29,0.00021633,2]
[425286876,1781645445000,-1934.38338736,0.00021898,2]
[425286875,1781645445000,-151.0,0.00021898,2]
[425286869,1781645445000,-200.0,0.00021898,2]
[425286866,1781645445000,-153.3321,0.00021897,2]
[425286892,1781645445000,-151.0,0.00021898,2]
[425286871,1781645445000,-151.0,0.00021898,2]
[425286873,1781645445000,-151.0,0.00021898,2]
[425286872,1781645445000,-151.0,0.00021898,2]
[425286867,1781645445000,-153.33214767,0.00021898,2]
[425286893,1781645445000,-151.0,0.00021898,2]
[425286868,1781645445000,-151.0,0.00021898,2]
[425286895,1781645445000,-151.0,0.00021898,2]
[425286917,1781645445000,-500.0,0.00021898,2]
[425286927,1781645445000,-321.0,0.00022,2]
[425286923,1781645445000,-244.0,0.00022,2]
[425286916,1781645445000,-151.0,0.00021898,2]
[425286918,1781645445000,-161.57413015,0.000219,2]
[425286919,1781645445000,-1685.44690976,0.000219,2]
[425286909,1781645445000,-500.0,0.00021898,2]
[425286921,1781645445000,-158.59,0.00021918,2]
[425286922,1781645445000,-1660.0,0.00022,2]
[425286926,1781645445000,-283.0,0.00022,2]
[425286924,1781645445000,-232.0,0.00022,2]
[425286928,1781645445000,-900.0,0.00022,2]
[425286929,1781645445000,-189.0,0.00022,2]
[425286894,1781645445000,-500.0,0.00021898,2]
[425286925,1781645445000,-496.0,0.00022,2]
[425286914,1781645445000,-151.0,0.00021898,2]
[425286920,1781645445000,-5000.0,0.00021918,2]
[425286911,1781645445000,-500.0,0.00021898,2]
[425286897,1781645445000,-151.0,0.00021898,2]
[425286908,1781645445000,-151.0,0.00021898,2]
[425286900,1781645445000,-151.0,0.00021898,2]
[425286896,1781645445000,-151.0,0.00021898,2]
[425286899,1781645445000,-151.0,0.00021898,2]
[425286902,1781645445000,-500.0,0.00021898,2]
[425286904,1781645445000,-151.0,0.00021898,2]
[425286898,1781645445000,-500.0,0.00021898,2]
[425286910,1781645445000,-151.0,0.00021898,2]
[425286913,1781645445000,-500.0,0.00021898,2]
[425286906,1781645445000,-500.0,0.00021898,2]
[425286907,1781645445000,-151.0,0.00021898,2]
[425286905,1781645445000,-151.0,0.00021898,2]
[425286912,1781645445000,-151.0,0.00021898,2]
[425286915,1781645445000,-500.0,0.00021898,2]
[425286984,1781645446000,-500.0,0.00022688,2]
[425286983,1781645446000,-1712.93078311,0.00022688,2]
[425286982,1781645446000,-152.0,0.00022688,2]
[425286969,1781645446000,-1328.27659266,0.00022688,2]
[425286977,1781645446000,-151.0,0.00022688,2]
[425286979,1781645446000,-1592.87721992,0.00022688,2]
[425286978,1781645446000,-500.0,0.00022688,2]
[425286975,1781645446000,-500.0,0.00022688,2]
[425286970,1781645446000,-1377.42282658,0.00022688,2]
[425286980,1781645446000,-1651.81367706,0.00022688,2]
[425286985,1781645446000,-152.0,0.00022688,2]
[425286989,1781645446000,-1842.0326633,0.00022688,2]
[425286981,1781645446000,-500.0,0.00022688,2]
[425286987,1781645446000,-500.0,0.00022688,2]
[425286990,1781645446000,-500.0,0.00022688,2]
[425286988,1781645446000,-152.0,0.00022688,2]
[425286991,1781645446000,-1910.18787185,0.00022688,2]
[425286992,1781645446000,-152.0,0.00022688,2]
[425286998,1781645446000,-500.0,0.00022688,2]
[425286993,1781645446000,-500.0,0.00022688,2]
[425286997,1781645446000,-2054.15682156,0.00022688,2]
[425286974,1781645446000,-1481.2378076,0.00022688,2]
[425286995,1781645446000,-152.0,0.00022688,2]
[425286986,1781645446000,-1776.30922209,0.00022688,2]
[425286967,1781645446000,-1280.88388877,0.00022688,2]
[425286956,1781645446000,-1068.11,0.00022688,2]
[425286973,1781645446000,-500.0,0.00022688,2]
[425286994,1781645446000,-1980.8648231,0.00022688,2]
[425286932,1781645446000,-11209.09,0.00022,2]
[425286930,1781645446000,-380.0,0.00022,2]
[425286934,1781645446000,-228.0,0.00022,2]
[425286933,1781645446000,-1144.0,0.00022,2]
[425286931,1781645446000,-450.0,0.00022,2]
[425286936,1781645446000,-210.0,0.00022,2]
[425286938,1781645446000,-164.0,0.00022,2]
[425286942,1781645446000,-500.0,0.00022065,2]
[425286940,1781645446000,-500.0,0.00022065,2]
[425286943,1781645446000,-200.0,0.00022446,2]
[425286972,1781645446000,-1428.38747117,0.00022688,2]
[425286944,1781645446000,-2005.9555727,0.00022446,2]
[425286965,1781645446000,-1235.18214925,0.00022688,2]
[425286960,1781645446000,-1148.61238259,0.00022688,2]
[425286958,1781645446000,-1107.63007,0.00022688,2]
[425286946,1781645446000,-1276.24,0.00022466,2]
[425286948,1781645446000,-166.66,0.00022545,30]
[425286951,1781645446000,-317.38922183,0.00022688,2]
[425286953,1781645446000,-1030.0,0.00022688,2]
[425286950,1781645446000,-155.826362,0.00022667,2]
[425286968,1781645446000,-151.0,0.00022688,2]
[425286971,1781645446000,-578.20924308,0.00022688,2]
[425286976,1781645446000,-1536.04360648,0.00022688,2]
[425286962,1781645446000,-1191.11104074,0.00022688,2]
[425286996,1781645446000,-500.0,0.00022688,2]
[425287009,1781645446000,-152.0,0.00022688,2]
[425287001,1781645446000,-152.0,0.00022688,2]
[425287031,1781645446000,-1660.0,0.00023,2]
[425287035,1781645446000,-283.0,0.00023,2]
[425287034,1781645446000,-496.0,0.00023,2]
[425287040,1781645446000,-228.0,0.00023,2]
[425287042,1781645446000,-164.0,0.00023,2]
[425287038,1781645446000,-189.0,0.00023,2]
[425287039,1781645446000,-380.0,0.00023,2]
[425287036,1781645446000,-321.0,0.00023,2]
[425287037,1781645446000,-900.0,0.00023,2]
[425287044,1781645446000,-151.0,0.00023018,2]
[425287041,1781645446000,-210.0,0.00023,2]